Workbook

Sheet PFS
H1: Ministério do Desenvolvimento Regional - MDR
H2: Companhia de Desenvolvimento dos Vales do São Francisco e do Parnaíba
A5: PROPOSTA FINANCEIRA DE SERVIÇOS | N5: CODIGO:
N6: PFS
A7: NOME DA CONSULTORA:
A9: LOCALIZAÇÃO: | G9: OBJETO: | O9: EDITAL:
G10: Gestão e acompanhamento de máquinas agrícolas
A11: SERVIÇOS PAGOS A PREÇO GLOBAL
A12: CUSTOS DIRETOS | N12: =N14+N17+N24 -> 1566742.83
A13: MÃO-DE-OBRA
A14: A - TOTAL DE SALÁRIO DA EQUIPE | N14: =SUM(N15:O16) -> 458872.24
A15: A1 - TOTAL SALÁRIOS DA EQUIPE COM VÍNCULO (PFS-I) | N15: ='PFS_I Equipe'!G31 -> 451596
A16: A2 - TOTAL SALÁRIO DO AUTÔNOMO (PFS-I) - Consultoria | N16: ='PFS_I Equipe'!H31 -> 7276.24
A17: B - TOTAL DE ENCARGOS SOCIAIS | N17: =SUM(N18:O19) -> 334733.07
A18: B1 - 73,80% INCIDENTE SOBRE O ITEM A1 | N18: ='PFS_I Equipe'!I31 -> 333277.83
A19: B2 - 20,00% INCIDENTE SOBRE O ITEM A2 | N19: ='PFS_I Equipe'!J31 -> 1455.24
A20: OUTRAS DESPESAS
A21: C - DESPESAS COM ALIMENTAÇÕES E VIAGENS (PFS-II) | N21: ='PFS_II Desp Ali e Viagens'!M26 -> 294685.92
A22: D - SERVIÇOS GRÁFICOS (PFS-III) | N22: ='PFS_III Ser Graf'!G31 -> 0
A23: E - DESPESAS GERAIS (PFS-IV) | N23: ='PFS_IV Desp Gerais'!I51 -> 478451.6
A24: TOTAL DE OUTRAS DESPESAS | N24: =SUM(N21:O23) -> 773137.52
A25: CUSTOS INDIRETOS | N25: =SUM(N26:O28) -> 451579.818
A26: F - CUSTO DE ADMINISTRAÇÃO - (20,00% DO ITEM A) (PFS-VI) | N26: ='PFS_V_ Det_ Custos Adm_'!G38 -> 91774.448
A27: G - REMUNERAÇÃO DA EMPRESA (LUCRO) - (8,00% DOS ITENS A+B+C+D+E+F) | N27: =ROUND(0.08*(N14+N17+N21+N22+N23+N26),2) -> 132681.38
A28: H - DESPESAS FISCAIS - (12,68% = DF' DOS ITENS A+B+C+D+E+F+G) (PFS-VII) | N28: =ROUND(0.1268*(PFS!N14+PFS!N17+PFS!N21+PFS!N22+PFS!N23+PFS!N26+PFS!N27),2) -> 227123.99
A29: TOTAL DA PROPOSTA | N29: =N25+N12 -> 2018322.648
A30: NOME DO INFORMANTE: | J30: QUALIFICAÇÃO:
A32: ASSINATURA: | N32: DATA:
A34: OBSERVAÇÃO:
A35: ESTE ORÇAMENTO FOI CALCULADO COM OS SEGUINTES % MÁXIMOS DE ENCARGOS SOCIAIS E CUSTOS INDIRETOS:
A36: 1. ENCARGOS SOCIAIS DE AUTÔNOMOS = 20% SOBRE O SALÁRIO MENSAL
A37: 2. ENCARGOS SOCIAIS DA EQUIPE COM VÍNCULO = 73,80% SOBRE O SALÁRIO MENSAL
A38: 3. CUSTO DE ADMINISTRAÇÃO = 20,00% SOBRE O TOTAL DE SALÁRIOS DA EQUIPE (A1 + A2)
A39: 4. REMUNERAÇÃO DA EMPRESA (LUCRO) = 8,00% SOBRE OS ITENS DE CUSTOS DIRETOS + CUSTO DE ADMINISTRAÇÃO
A40: 5. DF = A SOMA DOS TRIBUTOS (EX: ISS 2,00 + PIS 1,65 + COFINS 7,60 = 11,25%)
A41: 6. DF' = UTILIZADO NA LINHA "H" SERÁ CALCULADO APLICANDO A SEGUINTE FÓRMULA:
A42: DF' = { [ 1 / ( 1 - DF) ] - 1 } x 100
A43: DF' = { [ 1 / ( 1 - 0,1125 ) ] - 1 } x 100
A44: DF' = 0,1268 ou 12,68%
A45: 7. NÃO foram incluídos os tributos IRPJ e CSLL, em cumprimento ao Acórdão nº 325/2007 – TCU – Plenário.

Sheet PFS_I Equipe
B1: =PFS!H1 -> Ministério do Desenvolvimento Regional - MDR
B2: Companhia de Desenvolvimento dos Vales do São Francisco e do Parnaíba
A5: SALÁRIOS E ENCARGOS DA EQUIPE | K5: CODIGO:
K6: PFS-I
A7: NOME DA CONSULTORA:
A9: =PFS!A9 -> LOCALIZAÇÃO: | E9: OBJETO: | K9: EDITAL:
E10: =PFS!G10 -> Gestão e acompanhamento de máquinas agrícolas
A11: CATEGORIA FUNCIONAL | B11: CATEGORIA | C11: TOTAL DE | D11: TOTAL DE | E11: SALÁRIO | F11: SALÁRIO | G11: TOTAL CUSTO | H11: TOTAL CUSTO | I11: TOTAL CUSTO | J11: TOTAL CUSTO | K11: TAXA DE
C12: HORAS | D12: HOMENS X MÊS | E12: MENSAL (R$) | F12: HORA (R$) | G12: SALÁRIOS DE | H12: SALÁRIOS DE | I12: E. SOCIAIS DE | J12: E. SOCIAIS DE | K12: ENCARGOS SOCIAIS
G13: B1 | H13: B2 | I13: B1 | J13: B2 | K13: %
A14: Coordenador | B14: P1 | E14: 14401.28 | G14: =ROUND(E14*D14,2) -> 0 | H14: - | I14: =ROUND((G14*K14),2) -> 0 | J14: - | K14: 0.7532
A15: Engenheiro Ambiental, Agronômo e Florestal. Deverão ter especialização em Seguranaça do Trabalho | B15: P3 | E15: 8882.82 | G15: =ROUND(E15*D15,2) -> 0 | H15: - | I15: =ROUND((G15*K15),2) -> 0 | J15: - | K15: 0.7532 | L15: 5287 | M15: =D15/12 -> 0 | P15: =ROUND(L15/E15,2) -> 0.6 | Q15: =1-P15 -> 0.4
A16: Engenheiro Civil - Engº de Campo | B16: P3 | E16: =E15 -> 8882.82 | G16: =ROUND(E16*D16,2) -> 0 | H16: - | I16: =ROUND((G16*K16),2) -> 0 | J16: - | K16: 0.7532 | L16: 1600 | M16: =D16/12 -> 0 | N16: =17*22+10 -> 384 | P16: =ROUND(L16/E16,2) -> 0.18 | Q16: =1-P16 -> 0.82
A17: Ajudante Administrativo | B17: A2 | E17: 4111.36 | G17: =ROUND(E17*D17,2) -> 0 | H17: - | I17: =ROUND((G17*K17),2) -> 0 | J17: - | K17: 0.7532
A18: Auxiliar Administrativo | B18: A3 | E18: 2891.68 | G18: =ROUND(E18*D18,2) -> 0 | H18: - | I18: =ROUND((G18*K18),2) -> 0 | J18: - | K18: 0.7532
A19: Administrativo Júnior | B19: P8173 | D19: 12 | E19: 3049.72 | G19: =TRUNC(E19*D19,2) -> 36596.64 | H19: =TRUNC((F19*C19),2) -> 0 | I19: =TRUNC((G19*K19),2) -> 27008.32 | J19: =TRUNC((H19*K19),2) -> 0 | K19: ='PFS_VII Det_ Enc_ Soc_Mensalist'!F47 -> 0.738
A20: Agrônomo ou Eng. Agrícola - Gestão e acompanhamento pleno - 3 anos mínimo de experiência | B20: P8055 | D20: 12 | E20: 11980.97 | G20: =TRUNC(E20*D20,2) -> 143771.64 | H20: 0 | I20: =TRUNC((G20*K20),2) -> 106103.47 | J20: 0 | K20: =K19 -> 0.738
A21: Economista Doméstico(a) ou Sociologo ou Assistente Social ou Pedagogo(a) pleno - 5 anos mínimo de experiência | B21: P8020 | D21: 12 | E21: 3568.1 | G21: =TRUNC(E21*D21,2) -> 42817.2 | H21: 0 | I21: =TRUNC((G21*K21),2) -> 31599.09 | J21: 0 | K21: =K20 -> 0.738
A22: Técnico Agrícola para vistorias, estruturação, gestão e treinamentos junto às associações - 3 anos mínimo de experiência | B22: P8147 | D22: 24 | E22: 3069.63 | G22: =TRUNC(E22*D22,2) -> 73671.12 | H22: 0 | I22: =TRUNC((G22*K22),2) -> 54369.28 | J22: 0 | K22: =K21 -> 0.738
A23: Engenheiro para treinamento de manutenção e operação de máquinas agrícolas - Agrônomo ou Eng. Agrícola - 5 anos de mínimo de experiência | B23: P8056 | D23: 12 | E23: 12894.95 | F23: 73.03 | G23: =TRUNC(E23*D23,2) -> 154739.4 | H23: 0 | I23: =TRUNC((G23*K23),2) -> 114197.67 | J23: 0 | K23: =K22 -> 0.738
A24: Servente com encargos complementares | B24: SINAP 88316 | C24: =(16*5)+(4*5*5)+(4+5*3) -> 199 | F24: 19.76 | H24: 3932.24 | J24: 786.44 | K24: 0.2
A25: Tratorista com encargos complementares | B25: SINAP 88324 | C25: =(8*5)+(4*5*2)+(5*3*1) -> 95 | F25: 35.2 | H25: 3344 | J25: 668.8 | K25: 0.2
A31: TOTAIS | G31: =ROUND((SUM(G14:G30)),2) -> 451596 | H31: =SUM(H14:H30) -> 7276.24 | I31: =ROUND((SUM(I14:I30)),2) -> 333277.83 | J31: =SUM(J14:J30) -> 1455.24
A32: NOME DO INFORMANTE: | I32: QUALIFICAÇÃO:
A34: ASSINATURA: | J34: DATA:
A36: LEGENDA:
A37: B1 - SALÁRIOS DA EQUIPE EM DIAS ÚTEIS
A38: B2- SALÁRIO DO PESSOAL AUTÔNOMO (CONSULTORES)
A39: OBSERVAÇÃO:
A40: DETALHAR OS ENCARGOS SOCIAIS NO FOR PFS-VIII

Sheet PFS_II Desp Ali e Viagens
F2: ='PFS_I Equipe'!B1 -> Ministério do Desenvolvimento Regional - MDR
F3: Companhia de Desenvolvimento dos Vales do São Francisco e do Parnaíba
A6: DESPESAS COM ALIMENTAÇÕES E DIÁRIAS PARA VIAGENS | N6: CODIGO:
N7: PFS-II
A8: NOME DA CONSULTORA:
A10: =PFS!A9 -> LOCALIZAÇÃO: | D10: OBJETO: | N10: EDITAL:
A11: =PFS!A10 -> 0 | D11: =PFS!G10 -> Gestão e acompanhamento de máquinas agrícolas
B12: CATEGORIA | C12: AUXÍLIO ALIMENTAÇÃO | J12: DIÁRIAS
A13: EQUIPE | C13: NÍVEL SUPERIOR | G13: CONSULTOR | J13: NÍVEL SUPERIOR | M13: NÍVEL TÉC/AUX/APOIO
C14: QUANT. | D14: CUSTO/MÊS (R$) | E14: DESCONTO DE 20% (R$) | F14: TOTAL (R$) | G14: QUANT. | H14: CUSTO ALIMENTAÇÃO (R$) | I14: TOTAL (R$) | J14: QUANT. | K14: CUSTO DIÁRIA (R$) | L14: TOTAL (R$) | M14: QUANT. | N14: CUSTO DIÁRIA (R$) | O14: TOTAL (R$)
A15: ='PFS_I Equipe'!A19 -> Administrativo Júnior | B15: Qualquer | C15: ='PFS_I Equipe'!D19 -> 12 | D15: 677.01 | E15: =TRUNC((D15*0.2),2) -> 135.4 | F15: =TRUNC((C15*(D15-E15)),2) -> 6499.32
A16: ='PFS_I Equipe'!A20 -> Agrônomo ou Eng. Agrícola - Gestão e acompanhamento pleno - 3 anos mínimo de experiência | B16: Qualquer | C16: ='PFS_I Equipe'!D20 -> 12 | D16: =D15 -> 677.01 | E16: =TRUNC((D16*0.2),2) -> 135.4 | F16: =TRUNC((C16*(D16-E16)),2) -> 6499.32 | J16: =C16*15 -> 180 | K16: 284.1 | L16: =TRUNC((K16*J16),2) -> 51138 | O16: =TRUNC((N16*M16),2) -> 0
A17: ='PFS_I Equipe'!A21 -> Economista Doméstico(a) ou Sociologo ou Assistente Social ou Pedagogo(a) pleno - 5 anos mínimo de experiência | B17: Qualquer | C17: ='PFS_I Equipe'!D21 -> 12 | D17: =D16 -> 677.01 | E17: =TRUNC((D17*0.2),2) -> 135.4 | F17: =TRUNC((C17*(D17-E17)),2) -> 6499.32 | I17: =TRUNC((H17*G17),2) -> 0 | J17: =C17*15 -> 180 | K17: =K16 -> 284.1 | L17: =TRUNC((K17*J17),2) -> 51138 | O17: =TRUNC((N17*M17),2) -> 0
A18: ='PFS_I Equipe'!A22 -> Técnico Agrícola para vistorias, estruturação, gestão e treinamentos junto às associações - 3 anos mínimo de experiência | B18: Qualquer | C18: ='PFS_I Equipe'!D22 -> 24 | D18: =D15 -> 677.01 | E18: =TRUNC((D18*0.2),2) -> 135.4 | F18: =TRUNC((C18*(D18-E18)),2) -> 12998.64 | K18: =K17 -> 284.1 | L18: =TRUNC((K18*J18),2) -> 0 | M18: =C18*15 -> 360 | N18: 284.1 | O18: =TRUNC((N18*M18),2) -> 102276
A19: ='PFS_I Equipe'!A23 -> Engenheiro para treinamento de manutenção e operação de máquinas agrícolas - Agrônomo ou Eng. Agrícola - 5 anos de mínimo de experiência | B19: Qualquer | C19: ='PFS_I Equipe'!D23 -> 12 | D19: =D16 -> 677.01 | E19: =TRUNC((D19*0.2),2) -> 135.4 | F19: =TRUNC((C19*(D19-E19)),2) -> 6499.32 | G19: ='PFS_I Equipe'!C23/8 -> 0 | H19: 140 | I19: =TRUNC((H19*G19),2) -> 0 | J19: =C19*15 -> 180 | K19: =K18 -> 284.1 | L19: =TRUNC((K19*J19),2) -> 51138 | O19: =TRUNC((N19*M19),2) -> 0
O20: =ROUND(N20*M20,2) -> 0
O21: =ROUND(N21*M21,2) -> 0
O22: =ROUND(N22*M22,2) -> 0
O23: =ROUND(N23*M23,2) -> 0
A25: TOTAIS COM ALIMENTAÇÃO/DIÁRIAS | C25: =SUM(F15:F24) -> 38995.92 | G25: =SUM(I15:I24) -> 0 | J25: =SUM(L15:L24) -> 153414 | M25: =SUM(O15:O24) -> 102276
A26: TOTAL GERAL COM ALIMENTAÇÃO/ DIÁRIAS | M26: =C25+G25+J25+M25 -> 294685.92
A27: NOME DO INFORMANTE: | H27: QUALIFICAÇÃO:
A28: ASSINATURA: | N28: DATA:
A29: OBSERVAÇÃO:

Sheet PFS_III Ser Graf
C1: ='PFS_II Desp Ali e Viagens'!F2 -> Ministério do Desenvolvimento Regional - MDR
C2: Companhia de Desenvolvimento dos Vales do São Francisco e do Parnaíba
A4: SERVIÇOS GRÁFICOS | G4: CODIGO:
G5: PFS-III
A6: NOME DA CONSULTORA:
A8: =PFS!A9 -> LOCALIZAÇÃO: | C8: OBJETO: | G8: EDITAL:
C9: =PFS!G10 -> Gestão e acompanhamento de máquinas agrícolas
A10: DISCRIMINAÇÃO | D10: EXEMPLARES/ | E10: Nº DE | F10: CUSTOS (R$)
D11: ITENS | E11: VIAS | F11: UNITÁRIO | G11: TOTAL
A29: SUBTOTAL | G29: =SUM(G12:G28) -> 0
G30: 0
A31: TOTAL DE SERVIÇOS GRÁFICOS | G31: =G29+G30 -> 0
A32: NOME DO INFORMANTE: | D32: QUALIFICAÇÃO:
A34: ASSINTATURA: | F34: DATA:
A36: OBSERVAÇÃO:
A37: 1 - CORREPONDEM AOS SERVIÇOS COM IMPRESSÃO DOS RELATÓRIOS.

Sheet PFS_IV Desp Gerais
D1: ='PFS_III Ser Graf'!C1 -> Ministério do Desenvolvimento Regional - MDR
D2: Companhia de Desenvolvimento dos Vales do São Francisco e do Parnaíba
A4: DESPESAS GERAIS | I4: CODIGO:
I5: PFS-IV
A6: NOME DA CONSULTORA:
A8: =PFS!A9 -> LOCALIZAÇÃO: | D8: OBJETO: | I8: EDITAL:
A9: =PFS!A10 -> 0 | D9: =PFS!G10 -> Gestão e acompanhamento de máquinas agrícolas
A10: ITEM | B10: DISCRIMINAÇÃO | F10: UNID. | G10: QUANT. | H10: CUSTOS (R$)
H11: UNITÁRIO | I11: TOTAL
A12: 1 | B12: VEÍCULOS
A13: 1.1 | B13: Carro de caminhonete simples ou passeio com ar condicionado, direção hidráulica ou elétrica e motor igual ou superior 1.3 para visitas (combustível, pedágios, lubrificação, seguro e manutenção) - para horas eventuais a partir de Montes Claros | F13: km | G13: ='PFS_I Equipe'!C23/8*250 -> 0 | H13: =Veículo!B39 -> 1.267745714 | I13: =TRUNC(H13*G13,2) -> 0
A14: 1.2 | B14: Carro de caminhonete simples ou passeio com ar condicionado, direção hidráulica ou elétrica e motor igual ou superior 1.3 para visitas (combustível, pedágios, lubrificação, seguro e manutenção) - profissional mês | F14: mês | G14: ='PFS_I Equipe'!D20+'PFS_I Equipe'!D21+'PFS_I Equipe'!D22 -> 48 | H14: =Veículo!B38 -> 4437.11 | I14: =TRUNC(H14*G14,2) -> 212981.28
A15: 2 | B15: MATERIAL DIVERSO - IMPLANTAÇÃO DE UNIDADES DEMONSTRATIVAS
A16: 2.1 | B16: Gesso agrícola | F16: T | G16: 27 | H16: 137 | I16: =TRUNC(H16*G16,2) -> 3699
A17: 2.2 | B17: Cálcario dolomítico agrícola | F17: T | G17: 27 | H17: 100 | I17: =TRUNC(H17*G17,2) -> 2700
A18: 2.5 | B18: Análise de solo (fertilidade+textura) | F18: UNID. | G18: 10 | H18: 40 | I18: =TRUNC(H18*G18,2) -> 400
A19: 2.6 | B19: Semente de milho VIP3 ou PRO 3 | F19: UNID. | G19: 5 | H19: 803 | I19: =TRUNC(H19*G19,2) -> 4015
A20: 2.7 | B20: Semente de Sorgo boliviano | F20: UNID. | G20: 5 | H20: 770 | I20: 3850
A21: 2.8 | B21: Semente de Sorgo silagem | F21: UNID. | G21: 5 | H21: 250 | I21: 1250
A22: 2.9 | B22: Glifosato | F22: L | G22: 20 | H22: =550/20 -> 27.5 | I22: 550
A23: 2.10 | B23: Fertilizante para plantio (08-28-16, 04-30-16 ou similar) | F23: UNID. | G23: 50 | H23: 168 | I23: 8400
A24: 2.11 | B24: Fertilizante para cobertura (sulfato de amônio 20% de nitrogênio) saco de 50 kg | F24: UNID. | G24: 15 | H24: 140 | I24: 2100
A25: 2.12 | B25: Fertilizante para cobertura (ureia 46% de nitrogênio) saco de 50kg | F25: UNID. | G25: 25 | H25: 178 | I25: 4450
A26: 2.13 | B26: Fertilizante para cobertura (20-00-20) saco de 50kg | F26: UNID. | G26: 35 | H26: 142.9 | I26: 5001.5
A27: 2.14 | B27: Semente de brachiária ruzuzuensis | F27: UNID. | G27: 8 | H27: 130 | I27: 1040
A28: 2.15 | B28: Semente de Capim-andropogon | F28: UNID. | G28: 25 | H28: 68 | I28: =TRUNC(H28*G28,2) -> 1700
A29: 2.16 | B29: Inceticida Metomol | F29: L | G29: 3 | H29: 45 | I29: 135
A30: 2.17 | B30: Inceticida Clorpirifós | F30: L | G30: 3 | H30: 55 | I30: 165
A31: 2.18 | B31: Inceticida Fipronil (frasco 100mL) | F31: UNID. | G31: 6 | H31: 190 | I31: 1140
A32: 2.19 | B32: Semente de Capim-andropogon | F32: UNID. | G32: 25 | H32: 68 | I32: 1700
A33: 2.20 | B33: Conjunto Agrotóxico/Herbicida Hidrorepelente para Aplicação de Defensivos Agrícolas Plastcor CA 44029 (Calça + Jaqueta + Avental + Capuz + Viseira) + máscara | F33: UNID. | G33: 3 | H33: 170 | I33: 510
A34: 2.21 | B34: Transporte de gesso da industria ás propriendades com descarga fracionada por proriedade, incluso tranporte em rodovia pavimentada e leito natural. | F34: UNID. | G34: 1 | H34: 7841.8 | I34: 7841.8
A35: 2.22 | B35: Transporte de calcário da industria ás propriendades com descarga fracionada por proriedade, incluso tranporte em rodovia pavimentada e leito natural. | F35: UNID. | G35: 1 | H35: 6511.7 | I35: 6511.7
A36: 2.23 | B36: SICRO 5914581_ Transporte com caminhão carroceria com capacidade de 9 t e com guindauto de 10 t.m - rodovia em leito natural | F36: TxKM | G36: =(3)*50*5*5 -> 3750 | H36: 2.39 | I36: 8962.5
A37: 2.24 | B37: SICRO 5914583_Transporte com caminhão carroceria com capacidade de 9 t e com guindauto de 10 t.m - rodovia pavimentada | F37: TxKM | G37: =(3)*100*5*5 -> 7500 | H37: 1.56 | I37: 11700
A38: 2.25 | B38: Transporte com caminhão carroceria de 5 t - rodovia em leito natural | F38: TxKM | G38: =(SUM((G23:G26))/1000)*50*100 -> 625 | H38: 0.72 | I38: 450
A39: 2.26 | B39: Transporte com caminhão carroceria de 5 t - rodovia em leito natural | F39: TxKM | G39: =(((SUM(G23:G26))*50)/1000)*50 -> 312.5 | H39: 1.8 | I39: 562.5
A40: 2.27 | B40: Hora máquina de trator agrícola com implemento - (4 horas/dia x 5 dias x 20 associações) SICRO (E9518 + E9577) | F40: Hora produtiva | G40: =(5*5*20)+(5*5*8) -> 700 | H40: =4.78+125.04 -> 129.82 | I40: 90874
A41: 2.28 | B41: Trena de 30 metros | F41: UNID. | G41: 20 | H41: 23.78 | I41: 475.6
A42: 2.29 | B42: Mangueira para nível 5/16" x 1,0 mm, cor cristal (SINAPI 37456) | F42: Metro | G42: =G41*35 -> 700 | H42: 2.01 | I42: 1407
A43: 2.30 | B43: Sarrafo 2,5 X 10 cm em pinus (SINAPI 4509) | F43: Metro | G43: =G41*6 -> 120 | H43: 4.41 | I43: 529.2
A44: 3 | B44: MATERIAL DIVERSO - EVENTOS
A45: 3.1 | B45: ALIMENTAÇÃO (SINAPI 37370) | F45: LANCHE | G45: =20*200 -> 4000 | H45: =4*1.69 -> 6.76 | I45: =G45*H45 -> 27040
A46: 3.2 | B46: CANETA PERSONALIZADA P/ EVENTO | F46: CANETA | G46: =20*200 -> 4000 | H46: =ROUND((1.19+1.19+1.2)/3,2) -> 1.19 | I46: =G46*H46 -> 4760
A47: 3 | B47: ALUGUEL E EQUIPAMENTOS
A48: 2.1 | B48: Aluguel de sala (homemxm²xR$/m² = 6 x 7m² x R$ 46,53/m² - NBR 5665) | F48: mês | G48: ='PFS_I Equipe'!D19 -> 12 | H48: =6*7*46.53 -> 1954.26 | I48: =TRUNC(H48*G48,2) -> 23451.12
A49: 2.2 | B49: Custos diversos de escritório | F49: hxmês | G49: =G50 -> 60 | H49: 129 | I49: =TRUNC(H49*G49,2) -> 7740
A50: 2.3 | B50: Mobiliário completo, insumos, telefone, limpeza, computador e etc. | F50: hxmês | G50: ='PFS_I Equipe'!D19+'PFS_I Equipe'!D20+'PFS_I Equipe'!D21+'PFS_I Equipe'!D22 -> 60 | H50: 505.99 | I50: =TRUNC(H50*G50,2) -> 30359.4
B51: TOTAL DE DESPESAS GERAIS | I51: =SUM(I13:I50) -> 478451.6
B52: NOME DO INFORMANTE: | G52: QUALIFICAÇÃO:
B54: ASSINATURA: | H54: DATA:

Sheet PFS_V_ Det_ Custos Adm_
C1: =PFS!H1 -> Ministério do Desenvolvimento Regional - MDR
C2: Companhia de Desenvolvimento dos Vales do São Francisco e do Parnaíba
A4: DETALHAMENTO DO CUSTO DE ADMINISTRAÇÃO | G4: CODIGO:
G5: PFS-V
A6: NOME DA CONSULTORA:
A8: =PFS!A9 -> LOCALIZAÇÃO: | C8: OBJETO: | G8: EDITAL:
A9: =PFS!A10 -> 0 | C9: =PFS!G10 -> Gestão e acompanhamento de máquinas agrícolas
A10: DISCRIMINAÇÃO | F10: VALORES
F11: % | G11: R$
A12: 1 | B12: Custos da equipe da administração central da empresa consultora ( diretoria, pessoal técnico de apoio e pessoal administrativo não diretamente vinculado à prestação dos serviços) | F12: 0.2 | G12: =F12*PFS!$N$14 -> 91774.448
B38: TOTAIS DO CUSTO DE ADMINISTRAÇÃO | F38: =SUM(F12:F37) -> 0.2 | G38: =SUM(G12:G37) -> 91774.448
A40: NOME DO INFORMANTE: | D40: QUALIFICAÇÃO:
A41: ASSINATURA: | F41: DATA:
A42: OBSERVAÇAO:

Sheet PFS_VI Det_ Desp Fiscais
C1: ='PFS_V_ Det_ Custos Adm_'!C1 -> Ministério do Desenvolvimento Regional - MDR
C2: Companhia de Desenvolvimento dos Vales do São Francisco e do Parnaíba
A4: DETALHAMENTO DE DESPESAS FISCAIS | H4: CODIGO:
H5: PFS-VI
A6: NOME DA CONSULTORA:
A8: =PFS!A9 -> LOCALIZAÇÃO: | C8: OBJETO: | H8: EDITAL:
A9: =PFS!A10 -> 0 | C9: =PFS!G10 -> Gestão e acompanhamento de máquinas agrícolas
A10: DISCRIMINAÇÃO | F10: VALORES
F11: DF % | G11: DF' % | H11: R$
A13: 1 - ISS | F13: 2 | G13: =(1/(1-$F$40/100))*F13 -> 2.253521127 | H13: =F13/($F$13+$F$14+$F$15)*$H$40 -> 40377.59822
A14: 2 - PIS | F14: 1.65 | G14: =(1/(1-$F$40/100))*F14 -> 1.85915493 | H14: =F14/($F$13+$F$14+$F$15)*$H$40 -> 33311.51853
A15: 3 - COFINS | F15: 7.6 | G15: =(1/(1-$F$40/100))*F15 -> 8.563380282 | H15: =F15/($F$13+$F$14+$F$15)*$H$40 -> 153434.8732
A40: TOTAIS DE DESPESAS FISCAIS | F40: =F13+F14+F15 -> 11.25 | G40: =G13+G14+G15 -> 12.67605634 | H40: =PFS!N28 -> 227123.99
A41: NOME DO INFORMANTE: | D41: QUALIFICAÇÃO:
A43: ASSINATURA: | F43: DATA:
A45: Observação:
A46: As despesas fiscais (DF) incidem sobre o total da fatura e não sobre os custos incorridos. Portanto aplicar a seguinte fórmula:
A47: DF' = { [ 1 / ( 1 - DF ) ] - 1 } x 100
A48: ou seja, para o valor máximo de 11,25%, o valor a ser aplicado na composição dos preços será:
A49: DF' = { [ 1 / ( 1 - 0,1125 ) ] - 1 } x 100
A50: DF' =0,1268 ou 12,68%

Sheet PFS_VII Det_ Enc_ Soc_Mensalist
C1: ='PFS_VI Det_ Desp Fiscais'!C1 -> Ministério do Desenvolvimento Regional - MDR
C2: Companhia de Desenvolvimento dos Vales do São Francisco e do Parnaíba
A4: DETALHAMENTO DOS ENCARGOS SOCIAIS | G4: CODIGO:
G5: PFS-VII
A6: NOME DA CONSULTORA:
A8: =PFS!A9 -> LOCALIZAÇÃO: | C8: OBJETO: | G8: EDITAL:
C9: =PFS!G10 -> Gestão e acompanhamento de máquinas agrícolas
A10: DISCRIMINAÇÃO | F10: VALORES
F11: % | G11: R$
A12: A | B12: ENCARGOS SOCIAIS BÁSICOS
A13: A1 | B13: Seconci | F13: 0.012 | G13: =ROUND((F13*'PFS_I Equipe'!$G$31),2) -> 5419.15
A14: A2 | B14: INSS | F14: 0.2 | G14: =ROUND((F14*'PFS_I Equipe'!$G$31),2) -> 90319.2
A15: A3 | B15: FGTS | F15: 0.08 | G15: =ROUND((F15*'PFS_I Equipe'!$G$31),2) -> 36127.68
A16: A4 | B16: Incra | F16: 0.002 | G16: =ROUND((F16*'PFS_I Equipe'!$G$31),2) -> 903.19
A17: A5 | B17: Salário Educação | F17: 0.025 | G17: =ROUND((F17*'PFS_I Equipe'!$G$31),2) -> 11289.9
A18: A6 | B18: Sebrae | F18: 0.006 | G18: =ROUND((F18*'PFS_I Equipe'!$G$31),2) -> 2709.58
A19: A7 | B19: Seguro contra acidente | F19: 0.03 | G19: =ROUND((F19*'PFS_I Equipe'!$G$31),2) -> 13547.88
A20: A8 | B20: Senai | F20: 0.01 | G20: =ROUND((F20*'PFS_I Equipe'!$G$31),2) -> 4515.96
A21: A9 | B21: Sesi | F21: 0.015 | G21: =ROUND((F21*'PFS_I Equipe'!$G$31),2) -> 6773.94
A22: SUBTOTAL DE "A" | F22: =ROUND(SUM(F13:F21),4) -> 0.38 | G22: =SUM(G13:G21) -> 171606.48
A24: B | B24: ENCARGOS SOCIAIS QUE RECEBEM INCIDÊNCIA DE "A"
A25: B1 | B25: 13º Salário | F25: 0.0833 | G25: =ROUND((F25*'PFS_I Equipe'!$G$31),2) -> 37617.95
A26: B2 | B26: Auxílio-enfermidade | F26: 0.0066 | G26: =ROUND((F26*'PFS_I Equipe'!$G$31),2) -> 2980.53
A27: B3 | B27: Licença Paternidade | F27: 0.0005 | G27: =ROUND((F27*'PFS_I Equipe'!$G$31),2) -> 225.8
A28: B4 | B28: Faltas Justificadas | F28: 0.0056 | G28: =ROUND((F28*'PFS_I Equipe'!$G$31),2) -> 2528.94
A29: B5 | B29: Auxílio Acidente de Trabalho | F29: 0.0008 | G29: =ROUND((F29*'PFS_I Equipe'!$G$31),2) -> 361.28
A30: B6 | B30: Férias Gozadas | F30: 0.1029 | G30: =ROUND((F30*'PFS_I Equipe'!$G$31),2) -> 46469.23
A31: B7 | B31: Salário Maternidade | F31: 0.0003 | G31: =ROUND((F31*'PFS_I Equipe'!$G$31),2) -> 135.48
A32: SUBTOTAL DE "B" | F32: =ROUND(SUM(F25:F31),4) -> 0.2 | G32: =SUM(G25:G31) -> 90319.21
A34: C | B34: ENCARGOS SOCIAIS QUE NÃO RECEBEM INCIDÊNCIA DE "A"
A35: C1 | B35: Aviso prévio (indenizado) | F35: 0.045 | G35: =ROUND((F35*'PFS_I Equipe'!$G$31),2) -> 20321.82
A36: C2 | B36: Aviso prévio (trabalhado) | F36: 0.0011 | G36: =ROUND((F36*'PFS_I Equipe'!$G$31),2) -> 496.76
A37: C3 | B37: Férias (indenizadas) | F37: 0.0069 | G37: =ROUND((F37*'PFS_I Equipe'!$G$31),2) -> 3116.01
A38: C4 | B38: Depósito Rescisão Sem Justa Causa | F38: 0.0212 | G38: =ROUND((F38*'PFS_I Equipe'!$G$31),2) -> 9573.84
A39: C5 | B39: Indenização Adicional | F39: 0.0038 | G39: =ROUND((F39*'PFS_I Equipe'!$G$31),2) -> 1716.06
A40: SUBTOTAL DE "C" | F40: =ROUND(SUM(F35:F39),4) -> 0.078 | G40: =SUM(G35:G39) -> 35224.49
A42: D | B42: REINCIDÊNCIAS
A43: D1 | B43: Reincidência de "A" sobre "B" | F43: 0.076 | G43: =ROUND((F43*'PFS_I Equipe'!$G$31),2) -> 34321.3
A44: D2 | B44: Reincidência de Grupo A sobre aviso prévio trabalhado e reincidência do FGTS sobre Aviso Prévio Indenizado | F44: 0.004 | G44: =ROUND((F44*'PFS_I Equipe'!$G$31),2) -> 1806.38
A45: SUBTOTAL DE "D" | F45: =SUM(F43:F44) -> 0.08 | G45: =SUM(G43:G44) -> 36127.68
A47: TOTAIS DE ENCARGOS SOCIAIS | F47: =ROUND(F22+F32+F40+F45,4) -> 0.738 | G47: =G22+G32+G40+G45 -> 333277.86
A48: NOME DO INFORMANTE: | D48: QUALIFICAÇÃO:
A49: ASSINATURA: | F49: DATA:
A50: Observação:

Sheet PFS_VIII CRON. FÍSCIO-FINANC.
D1: =PFS!H1 -> Ministério do Desenvolvimento Regional - MDR
D2: =PFS!H2 -> Companhia de Desenvolvimento dos Vales do São Francisco e do Parnaíba
A4: CRONOGRAMA FÍSICO-FINANCEIRO | S4: CODIGO:
S5: PFS-VIII
A6: NOME DA CONSULTORA:
A8: =PFS!A9 -> LOCALIZAÇÃO: | D8: OBJETO: | S8: EDITAL:
A9: =PFS!A10 -> 0 | D9: =PFS!G10 -> Gestão e acompanhamento de máquinas agrícolas
A10: SERVIÇOS | C10: QUANTIDADE | D10: VALOR UNITÁRIO R$ 1,00 | E10: CRONOGRAMA | F10: MÊS 1 | G10: MÊS 2 | H10: MÊS 3 | I10: MÊS 4 | J10: MÊS 5 | K10: MÊS 6 | L10: MÊS 7 | M10: MÊS 8 | N10: MÊS 9 | O10: MÊS 10 | P10: MÊS 11 | Q10: MÊS 12 | R10: TOTAL
R11: =SUM(F11,G11,H11,I11,J11,K11,L11,M11,N11,O11:Q11) -> 0
R12: =SUM(F12:Q12) -> 0
R13: =SUM(F13,G13,H13,I13,J13,K13,L13,M13,N13,O13:Q13) -> 0
R14: =SUM(F14:Q14) -> 0
R15: =SUM(F15,G15,H15,I15,J15,K15,L15,M15,N15,O15:Q15) -> 0
R16: =SUM(F16:Q16) -> 0
F17: =SUM(F12,F14,F16) -> 0 | G17: =SUM(G12,G14,G16) -> 0 | H17: 0 | I17: 0 | J17: 0 | K17: 0 | L17: 0 | M17: 0 | N17: 0 | O17: 0 | P17: 0 | Q17: 0 | R17: =SUM(F17:Q17) -> 0 | U17: =R17/12 -> 0

Sheet Veículo
A1: Saveiro ou Strada - caminhonete simples
A2: Depreciação mensal do equipamento
A3: Preço de Aquisição | B3: =(94490+97990)/2 -> 96240
A4: Tempo de vida útil em meses | B4: =4*12 -> 48
A5: Previsão de recuperação na venda do bem usado | B5: 0.4
A6: Custo mensal [A1-(A3xA1)]/A2 | B6: =TRUNC(((B3-(B5*B3))/B4),2) -> 1203
A8: Juros pelo capital empregado
A9: Taxa mensal de juros | B9: 0.0125
A10: Juros sem depreciação ou aluguel (B1xA4) | B10: =TRUNC((B9*B6),2) -> 15.03
A12: Conservação e manutenção
A13: Taxa de gastos sem a depreciação e incluso seguro | B13: 1
A14: Incidência mensal (C1xA4) | B14: =TRUNC((B13*B6),2) -> 1203
A16: Combustível
A17: Média mensal de quilômetro por veículo | B17: 3500
A18: Preço da gasolina - 4222 | B18: 5.29
A19: Quilômetros rodados com um litro de combustível | B19: =(9.4+11.5)/2 -> 10.45
A20: Combustível (D1/D3)xD2 | B20: =TRUNC(((B17/B19)*B18),2) -> 1771.77
A22: Lubrificantes
A23: Quilometragem do contrato | B23: =B17*12 -> 42000
A24: Franquia por troca de óleo - km | B24: 5000
A25: Preço do litro de óleo | B25: =229.79/4 -> 57.4475
A26: Quantidade de litros de óleo por troca | B26: 3.5
A27: Quantidade de dias do contrato | B27: 365
A28: Lubrificantes E = E1/E2*E4*E3/E5*30 | B28: =TRUNC((B23/B24*B26*B25/B27*30),2) -> 138.81
A30: Pneus
A31: Quilometragem do contrato | B31: =B23 -> 42000
A32: Vida do pneu em quilômetros | B32: 45000
A33: Quantidades de pneus | B33: 5
A34: Preço de pneu | B34: 314.25
A35: Quantidades de dias do contrato | B35: 365
A36: Pneus = (F1xF3xF4x30)/(F2xF5) | B36: =TRUNC(((B31*B33*B34*30)/(B32*B35)),2) -> 120.53
A38: Custo Mensal | B38: =B36+B28+B20+B14+B6 -> 4437.11
A39: Custo por Km rodado | B39: =B38/B17 -> 1.267745714

Sheet Plan1
A1: Tecnólogo em Design | B1: R$/mês
A2: Cotação I | B2: 3777.8
A3: Cotação II | B3: 3777.8
A4: SENAI | B4: 5024
A5: P8020 | B5: 3254.07
A6: média | B6: =AVERAGE(B2:B5) -> 3958.4175
A7: mediana | B7: =MEDIAN(B2:B5) -> 3777.8
A9: Técnico Montagem | B9: R$/associação | C9: 8 horas
A10: 11 máquinas/média | B10: =60*11 -> 660 | C10: =B10/8 -> 82.5
A11: =A10 -> 11 máquinas/média | B11: =120*11 -> 1320 | C11: =B11/8 -> 165
A12: =A11 -> 11 máquinas/média | B12: =100*11 -> 1100 | C12: =B12/8 -> 137.5
A13: =A12 -> 11 máquinas/média | B13: =60*11 -> 660 | C13: =B13/8 -> 82.5
A14: média | B14: =AVERAGE(B10:B13) -> 935 | C14: =AVERAGE(C10:C13) -> 116.875
A15: mediana | B15: =MEDIAN(B10:B13) -> 880 | C15: =MEDIAN(C10:C13) -> 110

Sheet CPU
A1: CPU 01 | B1: COMPOSIÇÃO DE PREÇO UNITÁRIO
A2: OBRA: | G2: DATA: 22/09/2023
A3: SERVIÇO : TRANSPORTE DE GESSO RODOVIA PAVIMENTADA e RODOVIA EM REVESTIMENTO PRIMÁRIO | G3: UNIDADE: | H3: UNID
A4: EQUIPAMENTO
A5: DISCRIMINAÇÃO | B5: UNIDADE | C5: QUANT. | D5: PROD | E5: IMPROD | F5: P.UNIT. PROD | G5: P.UNIT. IMPR | H5: P.TOTAL
A6: CAMINHÃO BASCULANTE 18 M3, COM CAVALO MECÂNICO DE CAPACIDADE MÁXIMA DE TRAÇÃO COMBINADO DE 45000 KG, POTÊNCIA 330 CV, INCLUSIVE SEMIREBOQUE | B6: H | C6: 4.5 | D6: 3.5 | E6: 0.5 | F6: 348.45 | G6: 93.65 | H6: =C6*D6*F6+C6*E6*G6 -> 5698.8
A7: CAMINHÃO BASCULANTE 18 M3, COM CAVALO MECÂNICO DE CAPACIDADE MÁXIMA DE TRAÇÃO COMBINADO DE 45000 KG, POTÊNCIA 330 CV, INCLUSIVE SEMIREBOQUE | B7: H | C7: 4 | D7: 1 | E7: 2 | F7: 348.45 | G7: 93.65 | H7: =C7*D7*F7+C7*E7*G7 -> 2143
A8: SUB-TOTAL | H8: =SUM(H6:H7) -> 7841.8
A9: MATERIAL
A10: DISCRIMINAÇÃO | B10: UNIDADE | C10: QUANT. | D10: COD. | G10: P.UNIT. | H10: P.TOTAL
H11: =C11*G11 -> 0
A12: SUB-TOTAL | H12: =SUM(H11:H11) -> 0
A13: SERVIÇOS - COMPOSIÇÕES AUXILIARES
A14: DISCRIMINAÇÃO | B14: UNIDADE | C14: QUANT. | G14: P.UNIT. | H14: P.TOTAL
A16: SUB-TOTAL
A17: MÃO DE OBRA
A18: DISCRIMINAÇÃO | B18: UNIDADE | C18: QUANT. | D18: COD. | G18: P.UNIT. | H18: P.TOTAL
H19: =C19*G19 -> 0
A20: SUB-TOTAL | H20: =SUM(H19:H19) -> 0
A21: PRODUÇÃO DA EQUIPE | B21: 1 | C21: CUSTO | H21: =H20+H16+H12+H8 -> 7841.8
A22: TOTAL | H22: =H21/B21 -> 7841.8
A23: BDI % | H23: 1
A24: TOTAL DO SERVIÇO - R$ | H24: =ROUND(H22*H23,2) -> 7841.8
A25: BDI % | H25: 1
A26: TOTAL DO SERVIÇO - R$ | H26: =ROUND(H24*H25,2) -> 7841.8
A28: CPU 02 | B28: COMPOSIÇÃO DE PREÇO UNITÁRIO
A29: OBRA: | G29: DATA: 22/09/2023
A30: SERVIÇO : TRANSPORTE DE CALCÁRIO RODOVIA PAVIMENTADA e RODOVIA EM REVESTIMENTO PRIMÁRIO | G30: UNIDADE: | H30: UNID
A31: EQUIPAMENTO
A32: DISCRIMINAÇÃO | B32: UNIDADE | C32: QUANT. | D32: PROD | E32: IMPROD | F32: P.UNIT. PROD | G32: P.UNIT. IMPR | H32: P.TOTAL
A33: CAMINHÃO BASCULANTE 18 M3, COM CAVALO MECÂNICO DE CAPACIDADE MÁXIMA DE TRAÇÃO COMBINADO DE 45000 KG, POTÊNCIA 330 CV, INCLUSIVE SEMIREBOQUE (RODOVIA PAVIMENTADA) | B33: H | C33: 4 | D33: 3 | E33: 0.5 | F33: 348.45 | G33: 93.65 | H33: =C33*D33*F33+C33*E33*G33 -> 4368.7
A34: CAMINHÃO BASCULANTE 18 M3, COM CAVALO MECÂNICO DE CAPACIDADE MÁXIMA DE TRAÇÃO COMBINADO DE 45000 KG, POTÊNCIA 330 CV, INCLUSIVE SEMIREBOQUE (RODOVIA REVESTIMENTO PRIMÁRIO) | B34: H | C34: 4 | D34: 1 | E34: 2 | F34: 348.45 | G34: 93.65 | H34: =C34*D34*F34+C34*E34*G34 -> 2143
A35: SUB-TOTAL | H35: =SUM(H33:H34) -> 6511.7
A36: MATERIAL
A37: DISCRIMINAÇÃO | B37: UNIDADE | C37: QUANT. | D37: COD. | G37: P.UNIT. | H37: P.TOTAL
H38: =C38*G38 -> 0
A39: SUB-TOTAL | H39: =SUM(H38:H38) -> 0
A40: SERVIÇOS - COMPOSIÇÕES AUXILIARES
A41: DISCRIMINAÇÃO | B41: UNIDADE | C41: QUANT. | G41: P.UNIT. | H41: P.TOTAL
A43: SUB-TOTAL
A44: MÃO DE OBRA
A45: DISCRIMINAÇÃO | B45: UNIDADE | C45: QUANT. | D45: COD. | G45: P.UNIT. | H45: P.TOTAL
H46: =C46*G46 -> 0
A47: SUB-TOTAL | H47: =SUM(H46:H46) -> 0
A48: PRODUÇÃO DA EQUIPE | B48: 1 | C48: CUSTO | H48: =H47+H43+H39+H35 -> 6511.7
A49: TOTAL | H49: =H48/B48 -> 6511.7
A50: BDI % | H50: 1
A51: TOTAL DO SERVIÇO - R$ | H51: =ROUND(H49*H50,2) -> 6511.7
A52: BDI % | H52: 1
A53: TOTAL DO SERVIÇO - R$ | H53: =ROUND(H51*H52,2) -> 6511.7
